[Event "Early-Titled-Tuesday-Blitz-June-18-2024"]
[Site "Chess.com"]
[Date "2024.06.18"]
[Round "2"]
[White "Payyappat"]
[Black "JanMur7"]
[Result "0-1"]
[WhiteElo "2480"]
[BlackElo "2249"]
[TimeControl "180+1"]
[EndTime "8:19:00 PDT"]
[Termination "JanMur7 won by checkmate"]

1. e4 {[%clk 0:03:00.9]} 1... g6 {[%clk 0:02:59.3]} 2. d4 {[%clk 0:02:59.4]}
2... Bg7 {[%clk 0:02:59.9]} 3. Nc3 {[%clk 0:03:00.2]} 3... c5 {[%clk 0:03:00.2]}
4. Nf3 {[%clk 0:03:01]} 4... cxd4 {[%clk 0:02:59.9]} 5. Nxd4 {[%clk 0:03:01.9]}
5... Nc6 {[%clk 0:03:00.2]} 6. Be3 {[%clk 0:03:02]} 6... Nf6 {[%clk 0:02:59.2]}
7. f4 {[%clk 0:03:01]} 7... Qa5 {[%clk 0:02:59.2]} 8. Bd3 {[%clk 0:03:00]} 8...
d5 {[%clk 0:02:46.2]} 9. e5 {[%clk 0:02:55.7]} 9... Ng4 {[%clk 0:02:44.1]} 10.
Bg1 {[%clk 0:02:52.6]} 10... Nxd4 {[%clk 0:02:28.8]} 11. Bxd4 {[%clk 0:02:48.8]}
11... O-O {[%clk 0:02:25.6]} 12. O-O {[%clk 0:02:44.6]} 12... Nh6 {[%clk
0:02:23.8]} 13. Qf3 {[%clk 0:02:33.3]} 13... Nf5 {[%clk 0:02:13.5]} 14. Bxf5
{[%clk 0:02:30.2]} 14... Bxf5 {[%clk 0:02:06.9]} 15. Qxd5 {[%clk 0:02:24.7]}
15... Qb4 {[%clk 0:01:52]} 16. Bc5 {[%clk 0:00:59.5]} 16... Qxb2 {[%clk
0:01:49.9]} 17. Qb3 {[%clk 0:00:58.4]} 17... Qxc2 {[%clk 0:01:37]} 18. Qxc2
{[%clk 0:00:46.7]} 18... Bxc2 {[%clk 0:01:37.9]} 19. Nd5 {[%clk 0:00:45.6]}
19... Rfe8 {[%clk 0:01:30.6]} 20. Rac1 {[%clk 0:00:39.9]} 20... Bd3 {[%clk
0:00:58.3]} 21. Rfd1 {[%clk 0:00:38.6]} 21... Be4 {[%clk 0:00:45.8]} 22. Nxe7+
{[%clk 0:00:33.7]} 22... Kh8 {[%clk 0:00:45.2]} 23. Rd4 {[%clk 0:00:32.1]} 23...
Bf8 {[%clk 0:00:43.8]} 24. Rxe4 {[%clk 0:00:07.3]} 24... Bxe7 {[%clk 0:00:43.9]}
25. Bd4 {[%clk 0:00:06]} 25... Kg8 {[%clk 0:00:43.6]} 26. e6 {[%clk 0:00:04.3]}
26... fxe6 {[%clk 0:00:33.9]} 27. Rc7 {[%clk 0:00:04.1]} 27... Bf8 {[%clk
0:00:30.3]} 28. Rxb7 {[%clk 0:00:03.7]} 28... a5 {[%clk 0:00:24.7]} 29. h4
{[%clk 0:00:02.5]} 29... Rab8 {[%clk 0:00:13.2]} 30. Ra7 {[%clk 0:00:02.9]}
30... Rb1+ {[%clk 0:00:11.5]} 31. Kh2 {[%clk 0:00:03.2]} 31... Rb4 {[%clk
0:00:10.9]} 32. Rxa5 {[%clk 0:00:03.5]} 32... Rd8 {[%clk 0:00:07.6]} 33. Rxe6
{[%clk 0:00:01.4]} 33... Rbxd4 {[%clk 0:00:07.4]} 34. h5 {[%clk 0:00:01.7]}
34... Kf7 {[%clk 0:00:06]} 35. hxg6+ {[%clk 0:00:02.6]} 35... Kxe6 {[%clk
0:00:05.4]} 36. gxh7 {[%clk 0:00:02.4]} 36... Bg7 {[%clk 0:00:06]} 37. Rg5
{[%clk 0:00:02.5]} 37... Kf6 {[%clk 0:00:06.3]} 38. Ra5 {[%clk 0:00:03]} 38...
R4d5 {[%clk 0:00:06.2]} 39. Ra6+ {[%clk 0:00:03.4]} 39... R8d6 {[%clk
0:00:06.7]} 40. Ra7 {[%clk 0:00:03.5]} 40... Rh5+ {[%clk 0:00:07]} 41. Kg3
{[%clk 0:00:03.1]} 41... Rxh7 {[%clk 0:00:07.4]} 42. Kf3 {[%clk 0:00:04]} 42...
Rh5 {[%clk 0:00:07]} 43. g4 {[%clk 0:00:04.3]} 43... Rhd5 {[%clk 0:00:07.5]} 44.
g5+ {[%clk 0:00:04.6]} 44... Kg6 {[%clk 0:00:08.1]} 45. Kg4 {[%clk 0:00:05]}
45... Rd4 {[%clk 0:00:07.2]} 46. Ra5 {[%clk 0:00:05.1]} 46... Rb4 {[%clk
0:00:07.1]} 47. a4 {[%clk 0:00:04.2]} 47... Rdd4 {[%clk 0:00:07.1]} 48. Ra6+
{[%clk 0:00:04]} 48... Kh7 {[%clk 0:00:07.6]} 49. Kh5 {[%clk 0:00:04.4]} 49...
Rxf4 {[%clk 0:00:06.6]} 50. g6+ {[%clk 0:00:04.3]} 50... Kg8 {[%clk 0:00:07.2]}
51. Ra8+ {[%clk 0:00:04.6]} 51... Rf8 {[%clk 0:00:07.8]} 52. Ra7 {[%clk
0:00:05]} 52... Rbf4 {[%clk 0:00:07]} 53. Kg5 {[%clk 0:00:05.3]} 53... R8f5#
{[%clk 0:00:07.4]} 0-1

[Event "Early-Titled-Tuesday-Blitz-June-18-2024"]
[Site "Chess.com"]
[Date "2024.06.18"]
[Round "2"]
[White "Sadykov_Ramil"]
[Black "artin10862"]
[Result "0-1"]
[WhiteElo "2629"]
[BlackElo "2930"]
[TimeControl "180+1"]
[EndTime "8:19:01 PDT"]
[Termination "artin10862 won on time"]

1. e4 {[%clk 0:03:00.9]} 1... Nc6 {[%clk 0:02:57.2]} 2. Nf3 {[%clk 0:02:59.7]}
2... e5 {[%clk 0:02:56.9]} 3. Nc3 {[%clk 0:02:51.6]} 3... Nf6 {[%clk 0:02:51.2]}
4. Bb5 {[%clk 0:02:48.6]} 4... Nd4 {[%clk 0:02:48.6]} 5. Nxd4 {[%clk 0:02:46.3]}
5... exd4 {[%clk 0:02:48.3]} 6. e5 {[%clk 0:02:46.7]} 6... dxc3 {[%clk
0:02:44.4]} 7. exf6 {[%clk 0:02:46.3]} 7... Qxf6 {[%clk 0:02:44.1]} 8. dxc3
{[%clk 0:02:35.8]} 8... Bc5 {[%clk 0:02:38.8]} 9. Qe2+ {[%clk 0:02:34]} 9... Qe6
{[%clk 0:02:37.2]} 10. Bc4 {[%clk 0:02:29.5]} 10... Qxe2+ {[%clk 0:02:32.6]} 11.
Kxe2 {[%clk 0:02:30.4]} 11... O-O {[%clk 0:02:30.9]} 12. Re1 {[%clk 0:02:27.4]}
12... c6 {[%clk 0:02:23.8]} 13. Be3 {[%clk 0:02:24.9]} 13... Bb6 {[%clk
0:02:07.9]} 14. Bxb6 {[%clk 0:02:17.4]} 14... axb6 {[%clk 0:02:07.9]} 15. a3
{[%clk 0:01:41.8]} 15... d5 {[%clk 0:02:06.4]} 16. Bd3 {[%clk 0:01:41.4]} 16...
Be6 {[%clk 0:01:56.5]} 17. Kd2 {[%clk 0:01:33.5]} 17... b5 {[%clk 0:01:50.8]}
18. Re5 {[%clk 0:01:28.5]} 18... g6 {[%clk 0:01:49.7]} 19. Rae1 {[%clk
0:01:27.1]} 19... Kg7 {[%clk 0:01:49.6]} 20. f4 {[%clk 0:01:24.1]} 20... Kf6
{[%clk 0:01:46]} 21. h3 {[%clk 0:01:15]} 21... h5 {[%clk 0:01:44]} 22. h4 {[%clk
0:01:13.6]} 22... Ra4 {[%clk 0:01:33.2]} 23. g3 {[%clk 0:01:11.9]} 23... d4
{[%clk 0:01:28.4]} 24. R5e4 {[%clk 0:01:00]} 24... Rd8 {[%clk 0:01:16.7]} 25.
Rxd4 {[%clk 0:00:56.4]} 25... Raxd4 {[%clk 0:01:16.9]} 26. cxd4 {[%clk
0:00:57.3]} 26... Rxd4 {[%clk 0:01:17.8]} 27. Ke3 {[%clk 0:00:46.9]} 27... Rd7
{[%clk 0:01:16.4]} 28. c3 {[%clk 0:00:35.2]} 28... Bf5 {[%clk 0:01:11.3]} 29.
Be2 {[%clk 0:00:30.7]} 29... Bg4 {[%clk 0:00:42.1]} 30. Bd3 {[%clk 0:00:30.2]}
30... Bf5 {[%clk 0:00:40.8]} 31. Be2 {[%clk 0:00:30.3]} 31... Re7+ {[%clk
0:00:35.7]} 32. Kf2 {[%clk 0:00:28.4]} 32... Bg4 {[%clk 0:00:35.8]} 33. Bxg4
{[%clk 0:00:24.1]} 33... Rxe1 {[%clk 0:00:35.6]} 34. Kxe1 {[%clk 0:00:25]} 34...
hxg4 {[%clk 0:00:36.5]} 35. Ke2 {[%clk 0:00:24.5]} 35... Ke6 {[%clk 0:00:36.6]}
36. Ke3 {[%clk 0:00:20.4]} 36... c5 {[%clk 0:00:32.4]} 37. Ke4 {[%clk
0:00:14.7]} 37... f5+ {[%clk 0:00:28.9]} 38. Ke3 {[%clk 0:00:14.5]} 38... Kd5
{[%clk 0:00:23.9]} 39. Kd3 {[%clk 0:00:14]} 39... Kc6 {[%clk 0:00:12.8]} 40. Ke3
{[%clk 0:00:10.5]} 40... c4 {[%clk 0:00:12.4]} 41. Kd2 {[%clk 0:00:03.3]} 41...
Kc5 {[%clk 0:00:11.6]} 42. Ke2 {[%clk 0:00:02.4]} 42... Kb6 {[%clk 0:00:11.3]}
43. Kd2 {[%clk 0:00:02.4]} 43... Kc6 {[%clk 0:00:11]} 44. Ke2 {[%clk 0:00:02.7]}
44... Kd5 {[%clk 0:00:11.2]} 45. Ke3 {[%clk 0:00:01.9]} 45... b6 {[%clk
0:00:11.6]} 46. Kd2 {[%clk 0:00:02]} 46... Ke4 {[%clk 0:00:09.2]} 47. Ke2 {[%clk
0:00:02.4]} 47... b4 {[%clk 0:00:09.7]} 0-1

[Event "Early-Titled-Tuesday-Blitz-June-18-2024"]
[Site "Chess.com"]
[Date "2024.06.18"]
[Round "2"]
[White "Manukyan_Artak"]
[Black "bascheyaro"]
[Result "0-1"]
[WhiteElo "2489"]
[BlackElo "2802"]
[TimeControl "180+1"]
[EndTime "8:19:01 PDT"]
[Termination "bascheyaro won on time"]

1. e4 {[%clk 0:02:57]} 1... e6 {[%clk 0:02:43.3]} 2. d4 {[%clk 0:02:54.6]} 2...
d5 {[%clk 0:02:43.2]} 3. e5 {[%clk 0:02:53.1]} 3... c5 {[%clk 0:02:43.1]} 4. c3
{[%clk 0:02:53.5]} 4... Qb6 {[%clk 0:02:43.4]} 5. Nf3 {[%clk 0:02:53.1]} 5...
Bd7 {[%clk 0:02:43.8]} 6. a3 {[%clk 0:02:52.8]} 6... Bb5 {[%clk 0:02:43.7]} 7.
c4 {[%clk 0:02:52.2]} 7... Bxc4 {[%clk 0:02:43.7]} 8. Bxc4 {[%clk 0:02:51.9]}
8... dxc4 {[%clk 0:02:44.6]} 9. Nbd2 {[%clk 0:02:52.3]} 9... Nc6 {[%clk
0:02:36.8]} 10. Nxc4 {[%clk 0:02:50.5]} 10... Qa6 {[%clk 0:02:37.1]} 11. Qe2
{[%clk 0:02:38.2]} 11... Nxd4 {[%clk 0:02:33.7]} 12. Nxd4 {[%clk 0:02:36.5]}
12... cxd4 {[%clk 0:02:34.6]} 13. O-O {[%clk 0:02:36.2]} 13... Rc8 {[%clk
0:02:09.7]} 14. b3 {[%clk 0:02:32.8]} 14... b5 {[%clk 0:02:09.9]} 15. Nd6+
{[%clk 0:02:21.2]} 15... Bxd6 {[%clk 0:02:09.5]} 16. exd6 {[%clk 0:02:22.1]}
16... Nf6 {[%clk 0:02:08.6]} 17. Bg5 {[%clk 0:02:12.1]} 17... Nd5 {[%clk
0:02:04.1]} 18. Qe5 {[%clk 0:01:58.1]} 18... Rg8 {[%clk 0:00:20.1]} 19. Rfe1
{[%clk 0:01:43.7]} 19... Kd7 {[%clk 0:00:20.2]} 20. Qxd4 {[%clk 0:01:40.5]}
20... Qb6 {[%clk 0:00:19.8]} 21. Qh4 {[%clk 0:01:33.8]} 21... h6 {[%clk
0:00:18.4]} 22. Be7 {[%clk 0:01:32.1]} 22... g5 {[%clk 0:00:16.3]} 23. Qxh6
{[%clk 0:01:27.4]} 23... Rc2 {[%clk 0:00:16.2]} 24. Rf1 {[%clk 0:01:24.6]} 24...
Nxe7 {[%clk 0:00:16]} 25. dxe7 {[%clk 0:01:23.7]} 25... Kxe7 {[%clk 0:00:16.9]}
26. Qh7 {[%clk 0:01:22.6]} 26... Rgc8 {[%clk 0:00:16.7]} 27. Qg7 {[%clk
0:01:07.1]} 27... Qc5 {[%clk 0:00:16.3]} 28. Rad1 {[%clk 0:00:54.4]} 28... Qf5
{[%clk 0:00:14.4]} 29. Qd4 {[%clk 0:00:52.8]} 29... a5 {[%clk 0:00:14.9]} 30.
Qd6+ {[%clk 0:00:48.1]} 30... Kf6 {[%clk 0:00:14.9]} 31. Rd3 {[%clk 0:00:40.2]}
31... Kg6 {[%clk 0:00:12.7]} 32. Rf3 {[%clk 0:00:39.8]} 32... Qc5 {[%clk
0:00:11.7]} 33. Qd3+ {[%clk 0:00:34.5]} 33... f5 {[%clk 0:00:11.2]} 34. Re1
{[%clk 0:00:26.3]} 34... Rc1 {[%clk 0:00:11]} 35. Re3 {[%clk 0:00:21.7]} 35...
Rxe1+ {[%clk 0:00:10.7]} 36. Rxe1 {[%clk 0:00:22.6]} 36... Qc6 {[%clk
0:00:11.2]} 37. h4 {[%clk 0:00:17.3]} 37... gxh4 {[%clk 0:00:11]} 38. Qh3 {[%clk
0:00:17.2]} 38... Qc3 {[%clk 0:00:08.9]} 39. Rxe6+ {[%clk 0:00:12.2]} 39... Kg5
{[%clk 0:00:09.4]} 40. Qxc3 {[%clk 0:00:09.1]} 40... Rxc3 {[%clk 0:00:09.2]} 41.
Ra6 {[%clk 0:00:10]} 41... Rxb3 {[%clk 0:00:09.5]} 42. Rxa5 {[%clk 0:00:10.6]}
42... h3 {[%clk 0:00:09.7]} 43. gxh3 {[%clk 0:00:10.5]} 43... Rxh3 {[%clk
0:00:10.6]} 44. Kg2 {[%clk 0:00:11.4]} 44... Rb3 {[%clk 0:00:11.1]} 45. Ra8
{[%clk 0:00:11.1]} 45... Kf4 {[%clk 0:00:11.2]} 46. Rb8 {[%clk 0:00:09.1]} 46...
Ke4 {[%clk 0:00:10.5]} 47. Rb6 {[%clk 0:00:08.6]} 47... f4 {[%clk 0:00:10.8]}
48. Rb8 {[%clk 0:00:05.8]} 48... Kd5 {[%clk 0:00:11.2]} 49. Ra8 {[%clk
0:00:05.7]} 49... Kc5 {[%clk 0:00:11.5]} 50. Kh2 {[%clk 0:00:03.6]} 50... Rd3
{[%clk 0:00:11.4]} 0-1

[Event "Early-Titled-Tuesday-Blitz-June-18-2024"]
[Site "Chess.com"]
[Date "2024.06.18"]
[Round "2"]
[White "Sondremelaa"]
[Black "baki83"]
[Result "1-0"]
[WhiteElo "2603"]
[BlackElo "2829"]
[TimeControl "180+1"]
[EndTime "8:19:02 PDT"]
[Termination "Sondremelaa won on time"]

1. e4 {[%clk 0:03:00.9]} 1... c5 {[%clk 0:02:56.2]} 2. Nf3 {[%clk 0:03:00.6]}
2... d6 {[%clk 0:02:56.2]} 3. d4 {[%clk 0:03:00.5]} 3... cxd4 {[%clk 0:02:56.6]}
4. Nxd4 {[%clk 0:03:01.1]} 4... Nf6 {[%clk 0:02:57]} 5. Nc3 {[%clk 0:03:01.3]}
5... Nc6 {[%clk 0:02:56.9]} 6. Bg5 {[%clk 0:03:00.2]} 6... e6 {[%clk 0:02:53.2]}
7. Qd2 {[%clk 0:02:59.3]} 7... a6 {[%clk 0:02:50.5]} 8. O-O-O {[%clk 0:02:57.3]}
8... Bd7 {[%clk 0:02:50.8]} 9. Kb1 {[%clk 0:02:57.2]} 9... Be7 {[%clk
0:02:50.9]} 10. Nxc6 {[%clk 0:02:54.8]} 10... Bxc6 {[%clk 0:02:50.4]} 11. f3
{[%clk 0:02:54.3]} 11... Qc7 {[%clk 0:02:46.5]} 12. Ne2 {[%clk 0:02:43.7]} 12...
Rc8 {[%clk 0:02:35.6]} 13. Nd4 {[%clk 0:02:41.9]} 13... Bxe4 {[%clk 0:02:19]}
14. fxe4 {[%clk 0:01:44.1]} 14... Nxe4 {[%clk 0:02:18.1]} 15. Qe3 {[%clk
0:01:43.6]} 15... Nxg5 {[%clk 0:02:14.1]} 16. h4 {[%clk 0:01:42.5]} 16... e5
{[%clk 0:02:00.7]} 17. hxg5 {[%clk 0:01:24.7]} 17... exd4 {[%clk 0:02:00.5]} 18.
Qe4 {[%clk 0:00:55.4]} 18... d5 {[%clk 0:01:53.8]} 19. Qd3 {[%clk 0:00:39.7]}
19... Bxg5 {[%clk 0:01:47.9]} 20. Rxh7 {[%clk 0:00:38.7]} 20... Rxh7 {[%clk
0:01:47.2]} 21. Qxh7 {[%clk 0:00:38.9]} 21... g6 {[%clk 0:01:14.3]} 22. Bd3
{[%clk 0:00:32.4]} 22... Be3 {[%clk 0:01:11.2]} 23. Rf1 {[%clk 0:00:27.9]} 23...
Qe7 {[%clk 0:01:09.4]} 24. Rxf7 {[%clk 0:00:19]} 24... Qxf7 {[%clk 0:01:05.1]}
25. Bxg6 {[%clk 0:00:19.4]} 25... Qxg6 {[%clk 0:01:03.3]} 26. Qxg6+ {[%clk
0:00:20.3]} 26... Kd7 {[%clk 0:01:03.7]} 27. Qf7+ {[%clk 0:00:20.2]} 27... Kc6
{[%clk 0:00:58]} 28. Qe6+ {[%clk 0:00:19.8]} 28... Kc7 {[%clk 0:00:58.3]} 29.
Qxd5 {[%clk 0:00:20]} 29... Kb8 {[%clk 0:00:56.2]} 30. a4 {[%clk 0:00:18.7]}
30... Ka8 {[%clk 0:00:54.1]} 31. g4 {[%clk 0:00:18.2]} 31... Rc6 {[%clk
0:00:49.3]} 32. Qe4 {[%clk 0:00:14.9]} 32... Rc8 {[%clk 0:00:38.1]} 33. c3
{[%clk 0:00:11.5]} 33... Rd8 {[%clk 0:00:37.9]} 34. cxd4 {[%clk 0:00:10.5]}
34... Bxd4 {[%clk 0:00:38]} 35. g5 {[%clk 0:00:10.7]} 35... Ka7 {[%clk
0:00:22.2]} 36. g6 {[%clk 0:00:10.4]} 36... Rd7 {[%clk 0:00:21.5]} 37. Qe6
{[%clk 0:00:09.5]} 37... Rc7 {[%clk 0:00:19.6]} 38. Qd5 {[%clk 0:00:07.9]} 38...
Bg7 {[%clk 0:00:17.7]} 39. Qd6 {[%clk 0:00:07.4]} 39... Rc6 {[%clk 0:00:12.1]}
40. Qd3 {[%clk 0:00:05.9]} 40... Rb6 {[%clk 0:00:11.4]} 41. Qe3 {[%clk
0:00:05.4]} 41... a5 {[%clk 0:00:12]} 42. Ka2 {[%clk 0:00:04.9]} 42... Ka6
{[%clk 0:00:11.2]} 43. b3 {[%clk 0:00:05]} 43... Ka7 {[%clk 0:00:08.7]} 44. Qc5
{[%clk 0:00:04.8]} 44... Ka6 {[%clk 0:00:08.1]} 45. Qc4+ {[%clk 0:00:04.2]}
45... Ka7 {[%clk 0:00:08.2]} 46. Qe4 {[%clk 0:00:04.6]} 46... Rc6 {[%clk
0:00:05.9]} 47. Qd3 {[%clk 0:00:04.4]} 47... Rf6 {[%clk 0:00:04.1]} 48. Ka3
{[%clk 0:00:03.8]} 48... Rf7 {[%clk 0:00:02.6]} 49. gxf7 {[%clk 0:00:03.1]}
49... Bf8+ {[%clk 0:00:02.9]} 50. Ka2 {[%clk 0:00:03.7]} 50... Ka8 {[%clk
0:00:01]} 51. Qd8+ {[%clk 0:00:04]} 1-0

[Event "Early-Titled-Tuesday-Blitz-June-18-2024"]
[Site "Chess.com"]
[Date "2024.06.18"]
[Round "2"]
[White "GMAkobianSTL"]
[Black "Shuvalov"]
[Result "0-1"]
[WhiteElo "2825"]
[BlackElo "2601"]
[TimeControl "180+1"]
[EndTime "8:19:02 PDT"]
[Termination "Shuvalov won by checkmate"]

1. d4 {[%clk 0:03:00.9]} 1... Nf6 {[%clk 0:02:59.4]} 2. c4 {[%clk 0:02:58.2]}
2... g6 {[%clk 0:02:59.4]} 3. Nc3 {[%clk 0:02:57.4]} 3... d5 {[%clk 0:02:59.9]}
4. Nf3 {[%clk 0:02:53.4]} 4... Bg7 {[%clk 0:02:59.2]} 5. Bf4 {[%clk 0:02:51.9]}
5... O-O {[%clk 0:02:56]} 6. Rc1 {[%clk 0:02:51.1]} 6... Be6 {[%clk 0:02:49.5]}
7. c5 {[%clk 0:02:47.1]} 7... c6 {[%clk 0:02:46.5]} 8. e3 {[%clk 0:02:46.5]}
8... Bc8 {[%clk 0:02:38.7]} 9. h3 {[%clk 0:02:44.8]} 9... Nbd7 {[%clk
0:02:36.3]} 10. b4 {[%clk 0:02:43.4]} 10... b6 {[%clk 0:02:32.4]} 11. Bd3 {[%clk
0:02:34.1]} 11... a5 {[%clk 0:02:24]} 12. a3 {[%clk 0:02:33.6]} 12... axb4
{[%clk 0:02:22]} 13. axb4 {[%clk 0:02:33.2]} 13... Ba6 {[%clk 0:02:19.4]} 14.
Bxa6 {[%clk 0:02:27.5]} 14... Rxa6 {[%clk 0:02:20.3]} 15. b5 {[%clk 0:02:27.4]}
15... cxb5 {[%clk 0:02:18.6]} 16. c6 {[%clk 0:02:27.2]} 16... Nc5 {[%clk
0:01:56.9]} 17. dxc5 {[%clk 0:01:44.4]} 17... bxc5 {[%clk 0:01:57.8]} 18. c7
{[%clk 0:01:44.6]} 18... Qd7 {[%clk 0:01:36.7]} 19. Ne5 {[%clk 0:01:43.7]} 19...
Qxc7 {[%clk 0:01:36.5]} 20. Nxg6 {[%clk 0:01:40.7]} 20... Qa5 {[%clk 0:01:36.6]}
21. Nxe7+ {[%clk 0:01:34.2]} 21... Kh8 {[%clk 0:01:35.1]} 22. O-O {[%clk
0:01:34.2]} 22... Rd8 {[%clk 0:01:19.2]} 23. Nf5 {[%clk 0:01:12.7]} 23... d4
{[%clk 0:01:11.3]} 24. Nxg7 {[%clk 0:01:11.1]} 24... dxc3 {[%clk 0:01:01.9]} 25.
Qf3 {[%clk 0:01:03.9]} 25... Kxg7 {[%clk 0:00:59.3]} 26. Be5 {[%clk 0:01:01.4]}
26... b4 {[%clk 0:00:55.5]} 27. Ra1 {[%clk 0:00:59.7]} 27... Qxa1 {[%clk
0:00:50.7]} 28. Bxf6+ {[%clk 0:00:49.8]} 28... Rxf6 {[%clk 0:00:48.3]} 29. Qg3+
{[%clk 0:00:49.9]} 29... Rg6 {[%clk 0:00:46]} 30. Qe5+ {[%clk 0:00:49.8]} 30...
Kg8 {[%clk 0:00:44.4]} 31. Rxa1 {[%clk 0:00:48.7]} 31... c2 {[%clk 0:00:41.5]}
32. Kh2 {[%clk 0:00:44.9]} 32... b3 {[%clk 0:00:25.4]} 33. Qxc5 {[%clk
0:00:44.3]} 33... b2 {[%clk 0:00:20.1]} 34. Qa5 {[%clk 0:00:24.9]} 34... Rf8
{[%clk 0:00:14.7]} 35. Qe1 {[%clk 0:00:20]} 35... bxa1=Q {[%clk 0:00:13.4]} 36.
Qxa1 {[%clk 0:00:19.5]} 36... Rc8 {[%clk 0:00:14]} 37. Qc1 {[%clk 0:00:18.7]}
37... Rb6 {[%clk 0:00:14]} 38. e4 {[%clk 0:00:19]} 38... h6 {[%clk 0:00:12.6]}
39. Qe3 {[%clk 0:00:12.2]} 39... Rd6 {[%clk 0:00:10.3]} 40. Qg3+ {[%clk
0:00:12.1]} 40... Rg6 {[%clk 0:00:10.1]} 41. Qf4 {[%clk 0:00:10.9]} 41... c1=Q
{[%clk 0:00:10.5]} 42. Qf5 {[%clk 0:00:11.3]} 42... Qc7+ {[%clk 0:00:09.2]} 43.
e5 {[%clk 0:00:11]} 43... Re8 {[%clk 0:00:08.5]} 44. f4 {[%clk 0:00:09.7]} 44...
Qe7 {[%clk 0:00:07.7]} 45. g4 {[%clk 0:00:09.4]} 45... Qe6 {[%clk 0:00:07.9]}
46. Qe4 {[%clk 0:00:08.7]} 46... Rc8 {[%clk 0:00:07.2]} 47. f5 {[%clk
0:00:08.3]} 47... Qa2+ {[%clk 0:00:05.7]} 48. Kg3 {[%clk 0:00:08.3]} 48... Rc3+
{[%clk 0:00:05.4]} 49. Kh4 {[%clk 0:00:05.2]} 49... Qf2+ {[%clk 0:00:05.5]} 50.
Kh5 {[%clk 0:00:05.4]} 50... Rxh3# {[%clk 0:00:04.2]} 0-1

[Event "Early-Titled-Tuesday-Blitz-June-18-2024"]
[Site "Chess.com"]
[Date "2024.06.18"]
[Round "2"]
[White "stolencandy13"]
[Black "tptagain"]
[Result "0-1"]
[WhiteElo "2630"]
[BlackElo "2934"]
[TimeControl "180+1"]
[EndTime "8:19:03 PDT"]
[Termination "tptagain won by resignation"]

1. d4 {[%clk 0:03:00.9]} 1... d5 {[%clk 0:02:59.8]} 2. Bf4 {[%clk 0:03:00.6]}
2... c5 {[%clk 0:02:59.3]} 3. e3 {[%clk 0:03:00.8]} 3... Nc6 {[%clk 0:02:59.8]}
4. c3 {[%clk 0:03:00.9]} 4... e6 {[%clk 0:02:58.5]} 5. Nd2 {[%clk 0:03:01.1]}
5... Nf6 {[%clk 0:02:58]} 6. Bd3 {[%clk 0:03:00.9]} 6... Bd6 {[%clk 0:02:51.9]}
7. Bxd6 {[%clk 0:03:00.8]} 7... Qxd6 {[%clk 0:02:51.8]} 8. f4 {[%clk 0:03:01.7]}
8... c4 {[%clk 0:02:47.8]} 9. Bc2 {[%clk 0:03:00]} 9... b5 {[%clk 0:02:48.3]}
10. a3 {[%clk 0:02:58.5]} 10... a5 {[%clk 0:02:43]} 11. Ngf3 {[%clk 0:02:58.6]}
11... O-O {[%clk 0:02:37.8]} 12. O-O {[%clk 0:02:56.8]} 12... Bd7 {[%clk
0:02:36.9]} 13. Ne5 {[%clk 0:02:52.2]} 13... b4 {[%clk 0:02:35.9]} 14. a4 {[%clk
0:02:30.6]} 14... Rfb8 {[%clk 0:02:21.9]} 15. Rf3 {[%clk 0:02:26.5]} 15... Be8
{[%clk 0:02:18.2]} 16. Rh3 {[%clk 0:02:25.2]} 16... g6 {[%clk 0:02:13.6]} 17.
Qe1 {[%clk 0:02:05]} 17... Qd8 {[%clk 0:02:12.9]} 18. Qh4 {[%clk 0:01:56.2]}
18... Nh5 {[%clk 0:02:01.7]} 19. Qg4 {[%clk 0:01:50.6]} 19... Ng7 {[%clk
0:01:58]} 20. Ndf3 {[%clk 0:01:47.2]} 20... bxc3 {[%clk 0:01:57.3]} 21. bxc3
{[%clk 0:01:47.2]} 21... Rb2 {[%clk 0:01:52.5]} 22. Rc1 {[%clk 0:01:41.5]} 22...
Rab8 {[%clk 0:01:43.2]} 23. Ng5 {[%clk 0:01:40.4]} 23... h5 {[%clk 0:01:42.8]}
24. Qg3 {[%clk 0:01:31.7]} 24... Rxc2 {[%clk 0:01:32.8]} 25. Rxc2 {[%clk
0:01:31.7]} 25... Rb1+ {[%clk 0:01:32.3]} 26. Kf2 {[%clk 0:01:31]} 26... Nf5
{[%clk 0:01:32.1]} 27. Qf3 {[%clk 0:01:25.4]} 27... Nxe5 {[%clk 0:01:29.3]} 28.
dxe5 {[%clk 0:01:17.7]} 28... Nh6 {[%clk 0:01:16.6]} 29. Rg3 {[%clk 0:01:06]}
29... Qb6 {[%clk 0:01:12.5]} 30. Qe2 {[%clk 0:00:50.8]} 30... Bxa4 {[%clk
0:01:05.4]} 31. Rd2 {[%clk 0:00:46.4]} 31... Bb3 {[%clk 0:00:44]} 32. Nf3 {[%clk
0:00:45.9]} 32... Nf5 {[%clk 0:00:40.6]} 33. Rg5 {[%clk 0:00:41.3]} 33... a4
{[%clk 0:00:39.6]} 34. Nd4 {[%clk 0:00:41.5]} 34... Nxd4 {[%clk 0:00:32.6]} 35.
exd4 {[%clk 0:00:39]} 35... Kf8 {[%clk 0:00:26.2]} 36. g4 {[%clk 0:00:35.8]}
36... hxg4 {[%clk 0:00:26.5]} 37. Qxg4 {[%clk 0:00:35.4]} 37... Qa5 {[%clk
0:00:23.8]} 38. Qh4 {[%clk 0:00:25.5]} 38... Qxc3 {[%clk 0:00:22.6]} 39. Qh8+
{[%clk 0:00:25.4]} 39... Ke7 {[%clk 0:00:22.9]} 40. Qf6+ {[%clk 0:00:25.1]}
40... Ke8 {[%clk 0:00:23.5]} 41. Qh8+ {[%clk 0:00:14]} 41... Kd7 {[%clk
0:00:23.4]} 42. Re2 {[%clk 0:00:13]} 42... Qxd4+ {[%clk 0:00:23.6]} 43. Kg2
{[%clk 0:00:12.1]} 43... Rg1+ {[%clk 0:00:23.5]} 44. Kh3 {[%clk 0:00:10.6]}
44... Qd3+ {[%clk 0:00:23.5]} 45. Kh4 {[%clk 0:00:10.5]} 45... Rxg5 {[%clk
0:00:21.7]} 46. Kxg5 {[%clk 0:00:10.7]} 46... Qxe2 {[%clk 0:00:22]} 47. Qa8
{[%clk 0:00:09]} 47... Kc7 {[%clk 0:00:10.6]} 48. Qa7+ {[%clk 0:00:08.4]} 48...
Kc6 {[%clk 0:00:11.1]} 49. Qa8+ {[%clk 0:00:07.4]} 49... Kc5 {[%clk 0:00:11.2]}
50. Qa7+ {[%clk 0:00:07.8]} 50... Kb4 {[%clk 0:00:11.4]} 51. Qxf7 {[%clk
0:00:07.2]} 51... Qg2+ {[%clk 0:00:10.1]} 52. Kf6 {[%clk 0:00:07.3]} 52... Qg4
{[%clk 0:00:10.6]} 53. Qe7+ {[%clk 0:00:07.2]} 53... Kc3 {[%clk 0:00:10.8]} 54.
Qxe6 {[%clk 0:00:07.5]} 54... Qxe6+ {[%clk 0:00:10.8]} 55. Kxe6 {[%clk
0:00:08.4]} 55... a3 {[%clk 0:00:11.2]} 56. Kd6 {[%clk 0:00:08.6]} 56... a2
{[%clk 0:00:11.6]} 57. e6 {[%clk 0:00:09.5]} 57... a1=Q {[%clk 0:00:12.1]} 58.
e7 {[%clk 0:00:10.4]} 58... Qa8 {[%clk 0:00:12]} 59. Kd7 {[%clk 0:00:10.6]}
59... Ba4+ {[%clk 0:00:12.6]} 60. Ke6 {[%clk 0:00:10.4]} 60... Qe8 {[%clk
0:00:13.5]} 61. Kf6 {[%clk 0:00:10.8]} 61... Bd7 {[%clk 0:00:13.7]} 0-1